fUSD/lending_fUSD_20250109
["ID","MTS","AMOUNT","RATE_DAILY","PERIOD"]
[348318938,1736443861714,-573.78,0.00011164,2]
[348318939,1736443861724,-500.0,0.00011164,2]
[348318940,1736443861733,-500.0,0.00011164,2]
[348318941,1736443861743,-500.0,0.00011164,2]
[348318942,1736443861752,-500.0,0.00011164,2]
[348318943,1736443861761,-500.0,0.00011164,2]
[348318944,1736443861771,-4382.44,0.00011164,2]
[348318945,1736443861780,-500.0,0.00011164,2]
[348318946,1736443861789,-500.0,0.00011164,2]
[348318947,1736443861801,-5361.04,0.00011164,2]
[348318948,1736443861810,-500.0,0.00011164,2]
[348318949,1736443861819,-277.73920255,0.00011164,2]
[348318950,1736443861829,-2902.65,0.00011164,2]
[348318951,1736443861840,-565.44,0.00011164,2]
[348318952,1736443861851,-563.14,0.00011164,2]
[348318953,1736443861861,-2140.08,0.00011164,2]
[348318954,1736443861871,-800.64,0.00011164,2]
[348318955,1736443861880,-500.0,0.00011164,2]
[348318956,1736443861891,-500.0,0.00011164,2]
[348318957,1736443861902,-1935.58,0.00011164,2]
[348318958,1736443861912,-4415.78,0.00011164,2]
[348318959,1736443861921,-246.56399262,0.00011164,2]
[348318960,1736443861931,-1088.97,0.00011164,2]
[348318961,1736443861942,-500.0,0.00011164,2]
[348318962,1736443861952,-889.5,0.00011164,2]
[348318963,1736443861962,-1882.85,0.00011164,2]
[348318964,1736443861971,-549.99,0.00011164,2]
[348318965,1736443861981,-605.98,0.00011164,2]
[348318966,1736443861990,-500.16,0.00011164,2]
[348318967,1736443861999,-4339.17,0.00011164,2]
[348318968,1736443862010,-472.27246413,0.00011164,2]
[348318969,1736443862020,-500.0,0.00011164,2]
[348318970,1736443862030,-1246.1,0.00011164,2]
[348318971,1736443862041,-599.86,0.00011164,2]
[348318972,1736443862052,-500.0,0.00011164,2]
[348318973,1736443862062,-500.0,0.00011164,2]
[348318974,1736443862072,-1535.05,0.00011164,2]
[348318975,1736443862081,-635.1,0.00011164,2]
[348318976,1736443862092,-500.0,0.00011164,2]
[348318977,1736443862103,-551.96,0.00011164,2]
[348318978,1736443862114,-3444.79,0.00011164,2]
[348318979,1736443862128,-1978.41,0.00011164,2]
[348318980,1736443862139,-500.0,0.00011164,2]
[348318981,1736443862150,-500.0,0.00011164,2]
[348318982,1736443862159,-500.0,0.00011164,2]
[348318983,1736443862171,-1866.2,0.00011164,2]
[348318984,1736443862182,-500.0,0.00011164,2]
[348318985,1736443862193,-500.0,0.00011164,2]
[348318986,1736443862206,-500.0,0.00011164,2]
[348318987,1736443862217,-522.76,0.00011164,2]
[348318988,1736443862227,-500.0,0.00011164,2]
[348318989,1736443862238,-500.0,0.00011164,2]
[348318990,1736443862248,-1363.26,0.00011164,2]
[348318991,1736443862258,-930.0,0.00011164,2]
[348318992,1736443862267,-500.0,0.00011164,2]
[348318993,1736443862276,-1261.63,0.00011164,2]
[348318994,1736443862286,-1405.84,0.00011164,2]
[348318995,1736443862295,-527.06,0.00011164,2]
[348318996,1736443862306,-1663.75,0.00011164,2]
[348318997,1736443862315,-504.02,0.00011165,2]
[348318998,1736443862325,-500.0,0.00011165,2]
[348318999,1736443862334,-500.0,0.00011165,2]
[348319000,1736443862344,-500.0,0.00011165,2]
[348319001,1736443862354,-500.0,0.00011165,2]
[348319002,1736443862363,-500.0,0.00011165,2]
[348319003,1736443862373,-500.0,0.00011165,2]
[348319004,1736443862383,-500.0,0.00011165,2]
[348319005,1736443862393,-500.0,0.00011165,2]
[348319006,1736443862403,-500.0,0.00011165,2]
[348319007,1736443862412,-500.0,0.00011165,2]
[348319008,1736443862421,-500.0,0.00011165,2]
[348319009,1736443862432,-500.0,0.00011165,2]
[348319010,1736443862441,-500.0,0.00011165,2]
[348319011,1736443862451,-500.0,0.00011165,2]
[348319012,1736443862460,-500.0,0.00011165,2]
[348319013,1736443862470,-500.0,0.00011165,2]
[348319014,1736443862481,-500.0,0.00011165,2]
[348319015,1736443862491,-500.0,0.00011165,2]
[348319016,1736443862500,-500.0,0.00011165,2]
[348319017,1736443862510,-500.0,0.00011165,2]
[348319018,1736443862519,-500.0,0.00011165,2]
[348319019,1736443862528,-500.0,0.00011165,2]
[348319020,1736443862537,-500.0,0.00011165,2]
[348319021,1736443862548,-500.0,0.00011165,2]
[348319022,1736443862560,-500.0,0.00011165,2]
[348319023,1736443862569,-500.0,0.00011165,2]
[348319024,1736443862579,-418.16,0.00011165,2]
[348319025,1736443862587,-500.0,0.00011165,2]
[348319026,1736443862596,-500.0,0.00011165,2]
[348319027,1736443862605,-500.0,0.00011165,2]
[348319028,1736443862614,-500.0,0.00011165,2]
[348319029,1736443862623,-500.0,0.00011165,2]
[348319030,1736443862632,-500.0,0.00011165,2]
[348319031,1736443862641,-500.0,0.00011165,2]
[348319032,1736443862650,-500.0,0.00011165,2]
[348319033,1736443862659,-500.0,0.00011165,2]
[348319034,1736443862668,-1462.51,0.00011165,2]
[348319035,1736443862678,-521.67,0.00011165,2]
[348319036,1736443862688,-503.07,0.00011165,2]
[348319037,1736443862697,-661.91,0.00011165,2]
[348319038,1736443862708,-500.0,0.00011165,2]
[348319039,1736443862717,-500.0,0.00011165,2]
[348319040,1736443862727,-500.0,0.00011165,2]
[348319041,1736443862736,-500.0,0.00011165,2]
[348319042,1736443862745,-822.19,0.00011165,2]
[348319043,1736443862755,-500.0,0.00011165,2]
[348319044,1736443862765,-500.0,0.00011165,2]
[348319045,1736443862774,-500.0,0.00011165,2]
[348319046,1736443862785,-500.0,0.00011165,2]
[348319047,1736443862794,-825.41,0.00011165,2]
[348319048,1736443862805,-574.29,0.00011165,2]
[348319049,1736443862815,-500.0,0.00011165,2]
[348319050,1736443862824,-500.0,0.00011165,2]
[348319051,1736443862834,-500.0,0.00011165,2]
[348319052,1736443862843,-1330.43,0.00011165,2]
[348319053,1736443862853,-567.4,0.00011165,2]
[348319054,1736443862863,-1070.83,0.00011165,2]
[348319055,1736443862872,-500.0,0.00011165,2]
[348319056,1736443862882,-1056.15,0.00011165,2]
[348319057,1736443862891,-500.0,0.00011165,2]
[348319058,1736443862901,-528.55,0.00011165,2]
[348319059,1736443862911,-565.52,0.00011165,2]
[348319060,1736443862920,-1685.7,0.00011165,2]
[348319061,1736443862930,-500.0,0.00011165,2]
[348319062,1736443862940,-1146.53,0.00011165,2]
[348319063,1736443862950,-602.79,0.00011165,2]
[348319064,1736443862959,-844.28,0.00011165,2]
[348319065,1736443862968,-500.0,0.00011165,2]
[348319066,1736443862977,-3048.3,0.00011165,2]
[348319067,1736443862986,-3916.43,0.00011165,2]
[348319068,1736443862996,-2673.05,0.00011165,2]
[348319069,1736443863005,-1201.14,0.00011165,2]
[348319070,1736443863014,-2023.47,0.00011165,2]
[348319071,1736443863024,-1552.42,0.00011165,2]
[348319072,1736443863034,-1498.72,0.00011165,2]
[348319073,1736443863044,-2673.28,0.00011165,2]
[348319074,1736443863056,-650.14,0.00011165,2]
[348319075,1736443863066,-1177.59,0.00011165,2]
[348319076,1736443863076,-5086.94,0.00011165,2]
[348319077,1736443863085,-1609.3,0.00011165,2]
[348319078,1736443863096,-1933.69,0.00011165,2]
[348319079,1736443863106,-845.45,0.00011165,2]
[348319080,1736443863115,-1751.61,0.00011165,2]
[348319081,1736443863129,-2165.88,0.00011165,2]
[348319082,1736443863139,-1286.42,0.00011165,2]
[348319083,1736443863149,-3784.39,0.00011165,2]
[348319084,1736443863159,-9477.99,0.00011166,2]
[348319085,1736443863170,-500.0,0.00011166,2]
[348319086,1736443863180,-1248.09,0.00011166,2]
[348319087,1736443863190,-707.74,0.00011166,2]
[348319088,1736443863202,-2322.98,0.00011166,2]
[348319089,1736443863212,-510.76,0.00011166,2]
[348319090,1736443863222,-696.04,0.00011166,2]
[348319091,1736443863231,-1021.98,0.00011166,2]
[348319092,1736443863241,-500.0,0.00011166,2]
[348319093,1736443863251,-1500.74,0.00011166,2]
[348319094,1736443863261,-1000.0,0.00011166,2]
[348319095,1736443863271,-1009.96,0.00011166,2]
[348319096,1736443863281,-2152.64,0.00011166,2]
[348319097,1736443863291,-1664.89,0.00011166,2]
[348319098,1736443863302,-500.0,0.00011168,2]
[348319099,1736443863312,-150.0,0.00011168,2]
[348319100,1736443863322,-150.0,0.00011183,2]
[348319101,1736443863333,-150.0,0.00011194,2]
[348319102,1736443863343,-2000.0,0.0001121,2]
[348319103,1736443863352,-200.0,0.0001121,2]
[348319104,1736443863362,-328.61391748,0.00011245,2]
[348319105,1736443863372,-150.0,0.0001127,2]
[348319106,1736443863382,-2000.0,0.00011322,2]
[348319107,1736443863392,-1638.54,0.00011327,2]
[348319108,1736443863403,-1973.96,0.00011327,2]
[348319109,1736443863413,-1316.53,0.00011327,2]
[348319110,1736443863423,-3280.66,0.00011327,2]
[348319111,1736443863432,-2313.4,0.00011327,2]
[348319112,1736443863442,-6497.54,0.00011327,2]
[348319113,1736443863453,-3063.68,0.00011327,2]
[348319114,1736443863463,-9310.74602318,0.00011338,2]
[348319115,1736443863473,-328.61391748,0.00011348,2]
[348319116,1736443863484,-150.0,0.00011349,2]
[348319117,1736443863494,-150.0,0.00011366,2]
[348319118,1736443863504,-150.0,0.00011386,2]
[348319119,1736443863515,-1000.0,0.00011425,2]
[348319120,1736443863526,-500.0,0.00011437,2]
[348319121,1736443863536,-725.76,0.00011437,2]
[348319122,1736443863549,-500.0,0.00011437,2]
[348319123,1736443863560,-500.0,0.00011437,2]
[348319124,1736443863570,-802.65,0.00011437,2]
[348319125,1736443863580,-1098.26,0.00011437,2]
[348319126,1736443863590,-695.15,0.00011437,2]
[348319127,1736443863600,-500.0,0.00011437,2]
[348319128,1736443863610,-788.65,0.00011437,2]
[348319129,1736443863619,-578.26,0.00011437,2]
[348319130,1736443863629,-500.0,0.00011437,2]
[348319131,1736443863639,-500.0,0.00011437,2]
[348319132,1736443863648,-500.0,0.00011437,2]
[348319133,1736443863658,-1044.69,0.00011437,2]
[348319134,1736443863667,-841.24,0.00011437,2]
[348319135,1736443863676,-500.0,0.00011437,2]
[348319136,1736443863685,-500.0,0.00011437,2]
[348319137,1736443863694,-500.0,0.00011437,2]
[348319138,1736443863704,-500.0,0.00011437,2]
[348319139,1736443863714,-1057.25,0.00011437,2]
[348319140,1736443863723,-500.0,0.00011437,2]
[348319141,1736443863733,-983.27,0.00011437,2]
[348319142,1736443863743,-539.58,0.00011437,2]
[348319143,1736443863752,-500.0,0.00011437,2]
[348319144,1736443863762,-520.83,0.00011437,2]
[348319145,1736443863772,-500.0,0.00011437,2]
[348319146,1736443863782,-500.0,0.00011437,2]
[348319147,1736443863792,-500.0,0.00011437,2]
[348319148,1736443863802,-1399.51,0.00011437,2]
[348319149,1736443863812,-500.0,0.00011437,2]
[348319150,1736443863821,-500.0,0.00011437,2]
[348319151,1736443863831,-1229.61,0.00011437,2]
[348319152,1736443863840,-500.0,0.00011437,2]
[348319153,1736443863850,-500.0,0.00011437,2]
[348319154,1736443863859,-694.14,0.00011437,2]
[348319155,1736443863869,-500.0,0.00011437,2]
[348319156,1736443863877,-496.49816478,0.00011437,2]
[348319157,1736443863887,-500.0,0.00011437,2]
[348319158,1736443863897,-1222.94,0.00011437,2]
[348319159,1736443863906,-500.0,0.00011437,2]
[348319160,1736443863916,-547.62,0.00011437,2]
[348319161,1736443863926,-719.351032,0.00011437,2]
[348319162,1736443863934,-816.43,0.00011437,2]
[348319163,1736443863941,-500.0,0.00011437,2]
[348319164,1736443863948,-500.0,0.00011437,2]
[348319165,1736443863956,-3587.7,0.00011437,2]
[348319166,1736443863964,-500.0,0.00011437,2]
[348319167,1736443863972,-655.0205,0.00011437,2]
[348319168,1736443863981,-945.97,0.00011437,2]
[348319169,1736443863991,-500.0,0.00011437,2]
[348319170,1736443864000,-563.91,0.00011437,2]
[348319171,1736443864010,-912.71,0.00011437,2]
[348319172,1736443864020,-500.0,0.00011437,2]
[348319173,1736443864030,-1798.75,0.00011437,2]
[348319174,1736443864040,-1231.01,0.00011437,2]
[348319175,1736443864050,-500.0,0.00011437,2]
[348319176,1736443864061,-794.44,0.00011437,2]
[348319177,1736443864070,-914.02,0.00011437,2]
[348319178,1736443864080,-500.0,0.00011437,2]
[348319179,1736443864090,-787.68,0.00011437,2]
[348319180,1736443864099,-500.0,0.00011437,2]
[348319181,1736443864109,-1066.87,0.00011437,2]
[348319182,1736443864124,-1039.32,0.00011437,2]
[348319183,1736443864134,-500.0,0.00011437,2]
[348319184,1736443864143,-530.72,0.00011437,2]
[348319185,1736443864152,-500.0,0.00011437,2]
[348319186,1736443864162,-500.0,0.00011437,2]
[348319187,1736443864172,-2238.6,0.00011437,2]
[348319188,1736443864181,-953.94,0.00011437,2]
[348319189,1736443864191,-806.17,0.00011437,2]
[348319190,1736443864200,-500.0,0.00011437,2]
[348319191,1736443864210,-4802.74,0.00011437,2]
[348319192,1736443864220,-587.62,0.00011437,2]
[348319193,1736443864229,-500.0,0.00011437,2]
[348319194,1736443864239,-4690.29,0.00011437,2]
[348319195,1736443864248,-566.14,0.00011437,2]
[348319196,1736443864258,-551.39,0.00011437,2]
[348319197,1736443864267,-500.0,0.00011437,2]
[348319198,1736443864277,-782.87,0.00011437,2]
[348319199,1736443864286,-523.84,0.00011437,2]
[348319200,1736443864296,-3514.12,0.00011437,2]
[348319201,1736443864306,-611.15,0.00011437,2]
[348319202,1736443864316,-966.58,0.00011437,2]
[348319203,1736443864325,-3279.33,0.00011437,2]
[348319204,1736443864334,-709.54,0.00011437,2]
[348319205,1736443864343,-1017.08,0.00011437,2]
[348319206,1736443864353,-884.82,0.00011437,2]
[348319207,1736443864362,-1403.61,0.00011437,2]
[348319208,1736443864372,-998.27,0.00011437,2]
[348319209,1736443864381,-943.95,0.00011437,2]
[348319210,1736443864390,-500.0,0.00011437,2]
[348319211,1736443864400,-1077.27,0.00011437,2]
[348319212,1736443864409,-600.04,0.00011437,2]
[348319213,1736443864418,-727.93,0.00011437,2]
[348319214,1736443864428,-1077.25,0.00011437,2]
[348319215,1736443864438,-500.0,0.00011437,2]
[348319216,1736443864447,-514.77,0.00011437,2]
[348319217,1736443864456,-743.82,0.00011437,2]
[348319218,1736443864467,-1072.8,0.00011437,2]
[348319219,1736443864476,-1207.51,0.00011437,2]
[348319220,1736443864486,-1031.69,0.00011437,2]
[348319221,1736443864495,-500.0,0.00011437,2]
[348319222,1736443864504,-669.21,0.00011437,2]
[348319223,1736443864514,-500.0,0.00011438,2]
[348319224,1736443864523,-500.0,0.00011438,2]
[348319225,1736443864532,-510.41274783,0.00011438,2]
[348319226,1736443864542,-500.0,0.00011438,2]
[348319227,1736443864553,-500.0,0.00011438,2]
[348319228,1736443864563,-500.0,0.00011438,2]
[348319229,1736443864573,-500.0,0.00011438,2]
[348319230,1736443864748,-500.0,0.00011438,2]
[348319231,1736443864758,-500.0,0.00011438,2]
[348319232,1736443864768,-500.0,0.00011438,2]
[348319233,1736443864779,-500.0,0.00011438,2]
[348319234,1736443864788,-563.25365256,0.00011438,2]
[348319235,1736443864798,-500.0,0.00011438,2]
[348319236,1736443864808,-1022.22,0.00011438,2]
[348319237,1736443864818,-500.0,0.00011438,2]
[348319238,1736443864828,-500.0,0.00011438,2]
[348319239,1736443864837,-500.0,0.00011438,2]
[348319240,1736443864847,-500.0,0.00011438,2]
[348319241,1736443864857,-500.0,0.00011438,2]
[348319242,1736443864867,-1557.7,0.00011438,2]
[348319243,1736443864876,-500.0,0.00011438,2]
[348319244,1736443864886,-500.0,0.00011438,2]
[348319245,1736443864895,-500.0,0.00011438,2]
[348319246,1736443864905,-500.0,0.00011438,2]
[348319247,1736443864914,-500.0,0.00011438,2]
[348319248,1736443864923,-500.0,0.00011438,2]
[348319249,1736443864933,-500.0,0.00011438,2]
[348319250,1736443864942,-1891.11,0.00011438,2]
[348319251,1736443864952,-500.0,0.00011438,2]
[348319252,1736443864961,-500.0,0.00011438,2]
[348319253,1736443864970,-500.0,0.00011438,2]
[348319254,1736443864979,-539.34,0.00011438,2]
[348319255,1736443864989,-500.0,0.00011438,2]
[348319256,1736443864999,-500.0,0.00011438,2]
[348319257,1736443865008,-574.92,0.00011438,2]
[348319258,1736443865018,-500.0,0.00011438,2]
[348319259,1736443865027,-333.84998831,0.00011438,2]
[348319260,1736443865393,-345.75390433,0.00011438,2]
[348319261,1736443865405,-713.9492194,0.00011438,2]
[348319262,1736443865424,-325.13688796,0.00011438,2]
[348319263,1736443865435,-1045.02,0.00011438,2]
[348319264,1736443865445,-500.0,0.00011438,2]
[348319265,1736443865454,-500.0,0.00011438,2]
[348319266,1736443865464,-500.0,0.00011438,2]
[348319267,1736443865473,-500.0,0.00011438,2]
[348319268,1736443865483,-665.13,0.00011438,2]
[348319269,1736443865492,-415.97805197,0.00011438,2]
[348319270,1736443865502,-500.0,0.00011438,2]
[348319271,1736443865512,-545.39,0.00011438,2]
[348319272,1736443865521,-625.7,0.00011438,2]
[348319273,1736443865530,-64.10024754,0.00011438,2]
[348319274,1736443865544,-435.89975246,0.00011438,2]
[348319275,1736443865555,-500.0,0.00011438,2]
[348319276,1736443865564,-83.41040945,0.00011438,2]
[348319277,1736443865583,-299.37950016,0.00010616,2]
[348319278,1736443865594,-3062.92049984,0.00010616,2]
[348319279,1736443865604,-416.58959055,0.00011438,2]
[348319280,1736443865613,-500.0,0.00011438,2]
[348319281,1736443865623,-500.0,0.00011438,2]
[348319282,1736443865632,-500.0,0.00011438,2]
[348319283,1736443865641,-588.3,0.00011438,2]
[348319284,1736443865651,-920.22,0.00011438,2]
[348319285,1736443865660,-500.0,0.00011438,2]
[348319286,1736443865670,-505.56,0.00011438,2]
[348319287,1736443865680,-500.0,0.00011438,2]
[348319288,1736443865690,-500.0,0.00011438,2]
[348319289,1736443865701,-628.31,0.00011438,2]
[348319290,1736443865711,-500.0,0.00011438,2]
[348319291,1736443865720,-500.0,0.00011438,2]
[348319292,1736443865730,-500.0,0.00011438,2]
[348319293,1736443865740,-500.0,0.00011438,2]
[348319294,1736443865749,-500.0,0.00011438,2]
[348319295,1736443865759,-500.0,0.00011438,2]
[348319296,1736443865769,-500.0,0.00011438,2]
[348319297,1736443865779,-565.02,0.00011438,2]
[348319298,1736443865788,-3968.46,0.00011438,2]
[348319299,1736443865798,-500.0,0.00011438,2]
[348319300,1736443865809,-912.12,0.00011438,2]
[348319301,1736443865819,-500.0,0.00011438,2]
[348319302,1736443865828,-500.0,0.00011438,2]
[348319303,1736443865837,-500.0,0.00011438,2]
[348319304,1736443865847,-500.0,0.00011438,2]
[348319305,1736443865856,-500.0,0.00011438,2]
[348319306,1736443865866,-500.0,0.00011438,2]
[348319307,1736443865876,-500.0,0.00011438,2]
[348319308,1736443865885,-607.22,0.00011438,2]
[348319309,1736443865895,-500.0,0.00011438,2]
[348319310,1736443865904,-974.62,0.00011438,2]
[348319311,1736443865913,-517.83,0.00011438,2]
[348319312,1736443865922,-522.25,0.00011438,2]
[348319313,1736443865931,-2345.4,0.00011438,2]
[348319314,1736443865942,-500.0,0.00011438,2]
[348319315,1736443865951,-530.63,0.00011438,2]
[348319316,1736443865960,-500.0,0.00011438,2]
[348319317,1736443865969,-500.0,0.00011438,2]
[348319318,1736443865979,-954.96,0.00011438,2]
[348319319,1736443865989,-500.0,0.00011438,2]
[348319320,1736443866000,-679.54,0.00011438,2]
[348319321,1736443866009,-532.67,0.00011438,2]
[348319322,1736443866019,-500.0,0.00011438,2]
[348319323,1736443866029,-756.22,0.00011438,2]
[348319324,1736443866038,-500.0,0.00011438,2]
[348319325,1736443866047,-500.0,0.00011438,2]
[348319326,1736443866057,-500.0,0.00011438,2]
[348319327,1736443866067,-620.44,0.00011438,2]
[348319328,1736443866075,-540.87,0.00011438,2]
[348319329,1736443866085,-564.83,0.00011438,2]
[348319330,1736443866095,-674.56,0.00011438,2]
[348319331,1736443866105,-1525.01,0.00011438,2]
[348319332,1736443866114,-500.0,0.00011438,2]
[348319333,1736443866126,-500.0,0.00011438,2]
[348319334,1736443866135,-601.46,0.00011438,2]
[348319335,1736443866145,-500.0,0.00011438,2]
[348319336,1736443866153,-561.3,0.00011438,2]
[348319337,1736443866163,-233.93293009,0.00011438,2]
[348319338,1736443866177,-266.06706991,0.00011438,2]
[348319339,1736443866186,-510.74,0.00011438,2]
[348319340,1736443866196,-493.19052009,0.00011438,2]
[348319341,1736443866208,-6.80947991,0.00011438,2]
[348319342,1736443866218,-500.0,0.00011438,2]
[348319343,1736443866228,-597.46,0.00011438,2]
[348319344,1736443866239,-500.0,0.00011438,2]
[348319345,1736443866249,-521.05,0.00011438,2]
[348319346,1736443866259,-263.28052529,0.00011438,2]
[348319347,1736443866311,-545.84947471,0.00011438,2]
[348319348,1736443866321,-284.53108738,0.00011438,2]
[348319349,1736443866332,-215.46891262,0.00011438,2]
[348319350,1736443866342,-73.50106988,0.00011438,2]
[348319351,1736443866411,-426.49893012,0.00011438,2]
[348319352,1736443866421,-500.0,0.00011438,2]
[348319353,1736443866431,-500.0,0.00011438,2]
[348319354,1736443866441,-535.04,0.00011438,2]
[348319355,1736443866451,-500.0,0.00011438,2]
[348319356,1736443866460,-500.0,0.00011438,2]
[348319357,1736443866469,-202.20330269,0.00011438,2]
[348319358,1736443866481,-297.79669731,0.00011438,2]
[348319359,1736443866491,-500.0,0.00011438,2]
[348319360,1736443866502,-1835.84,0.00011438,2]
[348319361,1736443866511,-500.0,0.00011438,2]
[348319362,1736443866521,-500.0,0.00011438,2]
[348319363,1736443866530,-500.0,0.00011438,2]
[348319364,1736443866540,-756.03,0.00011438,2]
[348319365,1736443866552,-500.0,0.00011438,2]
[348319366,1736443866562,-500.0,0.00011438,2]
[348319367,1736443866571,-500.0,0.00011438,2]
[348319368,1736443866581,-500.0,0.00011438,2]
[348319369,1736443866591,-500.0,0.00011438,2]
[348319370,1736443866600,-500.0,0.00011438,2]
[348319371,1736443866609,-500.0,0.00011438,2]
[348319372,1736443866619,-747.58,0.00011438,2]
[348319373,1736443866629,-569.94,0.00011438,2]
[348319374,1736443866638,-407.55493106,0.00011438,2]
[348319375,1736443867199,-500.0,0.00010068,2]
[348319376,1736443867209,-500.0,0.00010068,2]
[348319377,1736443867219,-500.0,0.00010342,2]
[348319378,1736443867228,-3362.3,0.0001089,2]
[348319379,1736443867238,-92.44506894,0.00011438,2]
[348319380,1736443867248,-890.19,0.00011438,2]
[348319381,1736443867257,-896.0,0.00011438,2]
[348319382,1736443867267,-500.0,0.00011438,2]
[348319383,1736443867277,-500.0,0.00011438,2]
[348319384,1736443867287,-500.0,0.00011438,2]
[348319385,1736443867297,-500.0,0.00011438,2]
[348319386,1736443867307,-500.0,0.00011438,2]
[348319387,1736443867316,-512.51,0.00011438,2]
[348319388,1736443867326,-500.0,0.00011438,2]
[348319389,1736443867336,-500.0,0.00011438,2]
[348319390,1736443867346,-500.0,0.00011438,2]
[348319391,1736443867356,-500.0,0.00011438,2]
[348319392,1736443867564,-598.04,0.00011438,2]
[348319393,1736443867574,-500.0,0.00011438,2]
[348319394,1736443867583,-500.0,0.00011438,2]
[348319395,1736443867593,-500.0,0.00011438,2]
[348319396,1736443867603,-500.0,0.00011438,2]
[348319397,1736443867612,-683.94,0.00011438,2]
[348319398,1736443867622,-608.37,0.00011438,2]
[348319399,1736443867631,-500.0,0.00011438,2]
[348319400,1736443867641,-500.0,0.00011438,2]
[348319401,1736443867650,-631.08,0.00011438,2]
[348319402,1736443867660,-500.0,0.00011438,2]
[348319403,1736443867669,-1014.23,0.00011438,2]
[348319404,1736443867679,-500.0,0.00011438,2]
[348319405,1736443867689,-500.0,0.00011438,2]
[348319406,1736443867699,-500.0,0.00011438,2]
[348319407,1736443867708,-996.35,0.00011438,2]
[348319408,1736443867718,-573.78,0.00011438,2]
[348319409,1736443867728,-500.0,0.00011438,2]
[348319410,1736443867738,-500.0,0.00011438,2]
[348319411,1736443867747,-500.0,0.00011438,2]
[348319412,1736443867756,-500.0,0.00011438,2]
[348319413,1736443867766,-500.0,0.00011438,2]
[348319414,1736443867775,-4382.44,0.00011438,2]
[348319415,1736443867784,-500.0,0.00011438,2]
[348319416,1736443867793,-500.0,0.00011438,2]
[348319417,1736443867803,-5361.04,0.00011438,2]
[348319418,1736443867814,-500.0,0.00011438,2]
[348319419,1736443867823,-2902.65,0.00011438,2]
[348319420,1736443867832,-565.44,0.00011438,2]
[348319421,1736443867842,-563.14,0.00011438,2]
[348319422,1736443867852,-800.64,0.00011438,2]
[348319423,1736443867862,-500.0,0.00011438,2]
[348319424,1736443867871,-500.0,0.00011438,2]
[348319425,1736443867880,-2140.08,0.00011438,2]
[348319426,1736443867889,-1935.58,0.00011438,2]
[348319427,1736443867898,-4415.78,0.00011438,2]
[348319428,1736443867908,-1088.97,0.00011438,2]
[348319429,1736443867916,-500.0,0.00011438,2]
[348319430,1736443867926,-889.5,0.00011438,2]
[348319431,1736443867935,-1882.85,0.00011438,2]
[348319432,1736443867944,-549.99,0.00011438,2]
[348319433,1736443867954,-605.98,0.00011438,2]
[348319434,1736443867964,-500.16,0.00011438,2]
[348319435,1736443867974,-4339.17,0.00011438,2]
[348319436,1736443867983,-500.0,0.00011438,2]
[348319437,1736443867992,-1246.1,0.00011438,2]